[Event "Titled Tuesday Blitz March 21 Early 2023"]
[White "Yosha_Iglesias"]
[Black "Cuenca Jimenez, Jose Fernando"]
[BlackFideId "2255570"]
[WhiteElo "2469"]
[BlackElo "2429"]
[Result "1/2-1/2"]
[Round "06"]
[TimeControl "180+2"]
[Date "2023.03.21"]
[WhiteClock "0:00:07"]
[BlackClock "0:00:04"]

1. d4 {[%clk 0:03:00]}  Nf6 {[%clk 0:02:58]} 2. Nf3 {[%clk 0:03:01]}  d5 {[%clk 0:02:57]} 3. e3 {[%clk 0:03:01]}  c5 {[%clk 0:02:55]} 4. c3 {[%clk 0:03:01]}  e6 {[%clk 0:02:53]} 5. Nbd2 {[%clk 0:03:01]}  b6 {[%clk 0:02:52]} 6. Bd3 {[%clk 0:02:58]}  Be7 {[%clk 0:02:52]} 7. O-O {[%clk 0:02:54]}  Bb7 {[%clk 0:02:52]} 8. Qe2 {[%clk 0:02:37]}  O-O {[%clk 0:02:29]} 9. b3 {[%clk 0:02:36]}  Ne4 {[%clk 0:02:26]} 10. Bb2 {[%clk 0:02:35]}  Nd7 {[%clk 0:02:20]} 11. Rfd1 {[%clk 0:02:34]}  Qc7 {[%clk 0:02:12]} 12. Rac1 {[%clk 0:02:34]}  Rac8 {[%clk 0:01:48]} 13. c4 {[%clk 0:02:26]}  Qb8 {[%clk 0:01:42]} 14. cxd5 {[%clk 0:02:23]}  exd5 {[%clk 0:01:39]} 15. Ba6 {[%clk 0:02:23]}  Bd6 {[%clk 0:01:29]} 16. Bxb7 {[%clk 0:02:17]}  Qxb7 {[%clk 0:01:30]} 17. dxc5 {[%clk 0:02:05]}  Bxc5 {[%clk 0:01:11]} 18. Nd4 {[%clk 0:02:00]}  Ndf6 {[%clk 0:00:59]} 19. Nxe4 {[%clk 0:01:46]}  Nxe4 {[%clk 0:00:34]} 20. Qg4 {[%clk 0:01:46]}  f6 {[%clk 0:00:27]} 21. Ne6 {[%clk 0:01:36]}  Rfe8 {[%clk 0:00:19]} 22. Rxd5 {[%clk 0:01:21]}  Qf7 {[%clk 0:00:09]} 23. Qxe4 {[%clk 0:00:59]}  Rxe6 {[%clk 0:00:09]} 24. Qd3 {[%clk 0:00:54]}  Rce8 {[%clk 0:00:09]} 25. a3 {[%clk 0:00:42]}  a5 {[%clk 0:00:08]} 26. g3 {[%clk 0:00:37]}  R6e7 {[%clk 0:00:07]} 27. Rd1 {[%clk 0:00:35]}  h6 {[%clk 0:00:07]} 28. Rd8 {[%clk 0:00:25]}  Rxd8 {[%clk 0:00:05]} 29. Qxd8+ {[%clk 0:00:25]}  Re8 {[%clk 0:00:06]} 30. Qd5 {[%clk 0:00:20]}  Qxd5 {[%clk 0:00:04]} 31. Rxd5 {[%clk 0:00:21]}  Kf7 {[%clk 0:00:04]} 32. Rd7+ {[%clk 0:00:21]}  Kg6 {[%clk 0:00:04]} 33. Kg2 {[%clk 0:00:20]}  h5 {[%clk 0:00:04]} 34. Kf3 {[%clk 0:00:20]}  Re6 {[%clk 0:00:03]} 35. e4 {[%clk 0:00:20]}  Rc6 {[%clk 0:00:03]} 36. Ke2 {[%clk 0:00:17]}  Bf8 {[%clk 0:00:03]} 37. f4 {[%clk 0:00:14]}  Rc2+ {[%clk 0:00:03]} 38. Rd2 {[%clk 0:00:14]}  Rc6 {[%clk 0:00:03]} 39. f5+ {[%clk 0:00:13]}  Kf7 {[%clk 0:00:03]} 40. Rd7+ {[%clk 0:00:12]}  Ke8 {[%clk 0:00:03]} 41. Rd2 {[%clk 0:00:10]}  Bc5 {[%clk 0:00:03]} 42. Kd3 {[%clk 0:00:09]}  Rd6+ {[%clk 0:00:03]} 43. Kc2 {[%clk 0:00:09]}  Rc6 {[%clk 0:00:04]} 44. Kb1 {[%clk 0:00:09]}  Ke7 {[%clk 0:00:03]} 45. Ka2 {[%clk 0:00:08]}  Ke8 {[%clk 0:00:04]} 46. Rc2 {[%clk 0:00:07]}  Kd7 {[%clk 0:00:03]} 47. Bc3 {[%clk 0:00:07]}  Rc8 {[%clk 0:00:03]} 48. b4 {[%clk 0:00:06]}  axb4 {[%clk 0:00:04]} 49. Bxb4 {[%clk 0:00:06]}  Kc6 {[%clk 0:00:04]} 50. Bxc5 {[%clk 0:00:06]}  bxc5 {[%clk 0:00:04]} 51. Kb3 {[%clk 0:00:06]}  Rd8 {[%clk 0:00:05]} 52. Kc3 {[%clk 0:00:06]}  Rd4 {[%clk 0:00:05]} 53. Re2 {[%clk 0:00:06]}  Ra4 {[%clk 0:00:05]} 54. Kb3 {[%clk 0:00:07]}  Rd4 {[%clk 0:00:04]} 55. e5 {[%clk 0:00:07]}  fxe5 {[%clk 0:00:05]} 56. Rxe5 {[%clk 0:00:07]}  Rd3+ {[%clk 0:00:05]} 57. Kc4 {[%clk 0:00:07]}  Rxa3 {[%clk 0:00:04]} 58. Rxc5+ {[%clk 0:00:07]}  Kd6 {[%clk 0:00:05]} 59. Rb5 {[%clk 0:00:06]}  Ke7 {[%clk 0:00:05]} 60. Rb6 {[%clk 0:00:06]}  Ra2 {[%clk 0:00:04]} 61. Kd4 {[%clk 0:00:05]}  Rxh2 {[%clk 0:00:02]} 62. Ke5 {[%clk 0:00:05]}  Kf7 {[%clk 0:00:03]} 63. Rb7+ {[%clk 0:00:05]}  Kg8 {[%clk 0:00:04]} 64. Kf4 {[%clk 0:00:05]}  Rf2+ {[%clk 0:00:03]} 65. Kg5 {[%clk 0:00:06]}  Rf3 {[%clk 0:00:04]} 66. Kxh5 {[%clk 0:00:06]}  Rxg3 {[%clk 0:00:04]} 67. Kh4 {[%clk 0:00:05]}  Rg1 {[%clk 0:00:04]} 68. Kh5 {[%clk 0:00:05]}  Rh1+ {[%clk 0:00:03]} 69. Kg5 {[%clk 0:00:05]}  Rg1+ {[%clk 0:00:04]} 70. Kh5 {[%clk 0:00:06]}  Rh1+ {[%clk 0:00:04]} 71. Kg5 {[%clk 0:00:06]}  Rg1+ {[%clk 0:00:04]} 72. Kh5 {[%clk 0:00:07]} 1/2-1/2


[Site "https://www.chess.com"]

[Event "Titled Tuesday Blitz March 21 Early 2023"]
[White "Mazurkiewicz, Michal"]
[Black "Ozates, Tuna"]
[WhiteFideId "1124943"]
[BlackFideId "6354521"]
[WhiteElo "2054"]
[BlackElo "2151"]
[Result "1-0"]
[Round "06"]
[TimeControl "180+2"]
[Date "2023.03.21"]
[WhiteClock "0:00:46"]
[BlackClock "0:00:33"]

1. e4 {[%clk 0:02:59]}  c5 {[%clk 0:02:55]} 2. Nf3 {[%clk 0:02:59]}  Nc6 {[%clk 0:02:47]} 3. g3 {[%clk 0:02:59]}  e5 {[%clk 0:02:45]} 4. Bg2 {[%clk 0:02:59]}  g6 {[%clk 0:02:46]} 5. O-O {[%clk 0:02:58]}  Bg7 {[%clk 0:02:46]} 6. d3 {[%clk 0:02:57]}  d6 {[%clk 0:02:47]} 7. Nc3 {[%clk 0:02:56]}  Nge7 {[%clk 0:02:45]} 8. Nd2 {[%clk 0:02:57]}  Be6 {[%clk 0:02:43]} 9. Nc4 {[%clk 0:02:54]}  Qd7 {[%clk 0:02:39]} 10. a4 {[%clk 0:02:39]}  O-O {[%clk 0:02:37]} 11. Nd5 {[%clk 0:02:38]}  f5 {[%clk 0:02:27]} 12. f4 {[%clk 0:02:38]}  fxe4 {[%clk 0:02:19]} 13. dxe4 {[%clk 0:02:37]}  Bg4 {[%clk 0:02:18]} 14. Qd3 {[%clk 0:02:25]}  Rad8 {[%clk 0:02:14]} 15. c3 {[%clk 0:02:25]}  Nxd5 {[%clk 0:02:09]} 16. exd5 {[%clk 0:02:25]}  Ne7 {[%clk 0:02:06]} 17. fxe5 {[%clk 0:02:15]}  dxe5 {[%clk 0:02:00]} 18. Rxf8+ {[%clk 0:02:15]}  Kxf8 {[%clk 0:01:55]} 19. Bg5 {[%clk 0:02:14]}  Bf5 {[%clk 0:01:51]} 20. Qe3 {[%clk 0:01:59]}  Nxd5 {[%clk 0:01:45]} 21. Qxc5+ {[%clk 0:01:58]}  Ne7 {[%clk 0:01:40]} 22. Nxe5 {[%clk 0:01:43]}  Qe6 {[%clk 0:01:34]} 23. Re1 {[%clk 0:01:37]}  Bxe5 {[%clk 0:01:06]} 24. Rxe5 {[%clk 0:01:22]}  Rd1+ {[%clk 0:01:07]} 25. Kf2 {[%clk 0:01:19]}  Qb6 {[%clk 0:01:04]} 26. Bxe7+ {[%clk 0:01:04]}  Kf7 {[%clk 0:01:01]} 27. Qxb6 {[%clk 0:00:51]}  axb6 {[%clk 0:01:00]} 28. Bg5 {[%clk 0:00:49]}  Bd7 {[%clk 0:00:43]} 29. Bd5+ {[%clk 0:00:47]}  Kg7 {[%clk 0:00:33]} 30. Re7+ {[%clk 0:00:46]} 1-0


[Site "https://www.chess.com"]

[Event "Titled Tuesday Blitz March 21 Early 2023"]
[White "Tarasova, Viktoriya"]
[Black "wqws"]
[WhiteFideId "4175840"]
[WhiteElo "2182"]
[BlackElo "2623"]
[Result "0-1"]
[Round "06"]
[TimeControl "180+2"]
[Date "2023.03.21"]
[WhiteClock "0:00:09"]
[BlackClock "0:01:28"]

1. d4 {[%clk 0:03:00]}  Nf6 {[%clk 0:03:00]} 2. c4 {[%clk 0:02:58]}  e6 {[%clk 0:03:00]} 3. Nc3 {[%clk 0:02:58]}  Bb4 {[%clk 0:03:00]} 4. Nf3 {[%clk 0:02:58]}  O-O {[%clk 0:03:01]} 5. Bg5 {[%clk 0:02:56]}  h6 {[%clk 0:03:00]} 6. Bh4 {[%clk 0:02:56]}  d5 {[%clk 0:02:59]} 7. cxd5 {[%clk 0:02:56]}  exd5 {[%clk 0:02:59]} 8. e3 {[%clk 0:02:56]}  Bg4 {[%clk 0:02:59]} 9. Bd3 {[%clk 0:02:54]}  c6 {[%clk 0:02:59]} 10. h3 {[%clk 0:02:54]}  Bh5 {[%clk 0:02:59]} 11. Qc2 {[%clk 0:02:48]}  Nbd7 {[%clk 0:02:46]} 12. Ne5 {[%clk 0:02:35]}  g5 {[%clk 0:02:33]} 13. Bg3 {[%clk 0:02:30]}  Nxe5 {[%clk 0:02:30]} 14. Bxe5 {[%clk 0:02:19]}  Ne4 {[%clk 0:02:28]} 15. f3 {[%clk 0:02:00]}  Nxc3 {[%clk 0:02:26]} 16. bxc3 {[%clk 0:02:00]}  f6 {[%clk 0:02:22]} 17. Bg3 {[%clk 0:01:12]}  Bd6 {[%clk 0:02:22]} 18. Bf2 {[%clk 0:01:12]}  f5 {[%clk 0:02:06]} 19. Bxf5 {[%clk 0:01:08]}  Qf6 {[%clk 0:02:06]} 20. g4 {[%clk 0:01:02]}  Bg6 {[%clk 0:01:52]} 21. Bxg6 {[%clk 0:00:56]}  Qxf3 {[%clk 0:01:52]} 22. Bf5 {[%clk 0:00:40]}  Qxh1+ {[%clk 0:01:48]} 23. Ke2 {[%clk 0:00:37]}  Qh2 {[%clk 0:01:44]} 24. Rf1 {[%clk 0:00:24]}  Rae8 {[%clk 0:01:42]} 25. Bh7+ {[%clk 0:00:17]}  Kh8 {[%clk 0:01:41]} 26. Bg6 {[%clk 0:00:17]}  Re7 {[%clk 0:01:34]} 27. Bf5 {[%clk 0:00:18]}  Bg3 {[%clk 0:01:33]} 28. Qd1 {[%clk 0:00:09]}  Rfe8 {[%clk 0:01:28]} 0-1


[Site "https://www.chess.com"]

[Event "Titled Tuesday Blitz March 21 Early 2023"]
[White "Loiacono, Antonio"]
[Black "Savitha Shri B"]
[WhiteFideId "895415"]
[BlackFideId "35061887"]
[WhiteElo "2257"]
[BlackElo "2191"]
[Result "0-1"]
[Round "06"]
[TimeControl "180+2"]
[Date "2023.03.21"]
[WhiteClock "0:00:01"]
[BlackClock "0:00:16"]

1. e4 {[%clk 0:03:00]}  c5 {[%clk 0:03:00]} 2. Nf3 {[%clk 0:03:00]}  Nc6 {[%clk 0:03:00]} 3. d4 {[%clk 0:03:00]}  cxd4 {[%clk 0:03:00]} 4. Nxd4 {[%clk 0:03:01]}  Nf6 {[%clk 0:03:01]} 5. Nc3 {[%clk 0:03:01]}  d6 {[%clk 0:03:02]} 6. Nf3 {[%clk 0:02:54]}  g6 {[%clk 0:03:01]} 7. Bc4 {[%clk 0:02:48]}  Bg7 {[%clk 0:03:01]} 8. e5 {[%clk 0:02:41]}  dxe5 {[%clk 0:02:52]} 9. Qxd8+ {[%clk 0:02:37]}  Nxd8 {[%clk 0:02:52]} 10. Nxe5 {[%clk 0:02:35]}  O-O {[%clk 0:02:52]} 11. O-O {[%clk 0:02:30]}  Ng4 {[%clk 0:02:44]} 12. Nxg4 {[%clk 0:02:23]}  Bxg4 {[%clk 0:02:45]} 13. Be3 {[%clk 0:02:23]}  Nc6 {[%clk 0:02:44]} 14. Bb3 {[%clk 0:02:15]}  Nd4 {[%clk 0:02:34]} 15. Rfe1 {[%clk 0:02:00]}  Nxb3 {[%clk 0:02:24]} 16. axb3 {[%clk 0:01:58]}  a6 {[%clk 0:02:23]} 17. Bc5 {[%clk 0:01:46]}  Rfc8 {[%clk 0:02:06]} 18. Bxe7 {[%clk 0:01:40]}  Bxc3 {[%clk 0:02:05]} 19. bxc3 {[%clk 0:01:31]}  Rxc3 {[%clk 0:02:06]} 20. Rac1 {[%clk 0:01:20]}  Bf5 {[%clk 0:02:06]} 21. Bf6 {[%clk 0:01:13]}  Rxc2 {[%clk 0:02:03]} 22. Rxc2 {[%clk 0:01:14]}  Bxc2 {[%clk 0:02:04]} 23. b4 {[%clk 0:01:14]}  b6 {[%clk 0:01:51]} 24. h4 {[%clk 0:01:09]}  a5 {[%clk 0:01:51]} 25. bxa5 {[%clk 0:01:04]}  bxa5 {[%clk 0:01:51]} 26. h5 {[%clk 0:01:03]}  gxh5 {[%clk 0:01:50]} 27. Re5 {[%clk 0:00:52]}  a4 {[%clk 0:01:48]} 28. Rg5+ {[%clk 0:00:50]}  Bg6 {[%clk 0:01:47]} 29. f4 {[%clk 0:00:50]}  Ra6 {[%clk 0:01:32]} 30. Ba1 {[%clk 0:00:43]}  Rb6 {[%clk 0:01:23]} 31. Kh2 {[%clk 0:00:42]}  f6 {[%clk 0:01:05]} 32. Ra5 {[%clk 0:00:41]}  Bc2 {[%clk 0:01:05]} 33. Rxh5 {[%clk 0:00:37]}  Kg7 {[%clk 0:00:56]} 34. Rc5 {[%clk 0:00:35]}  Bd1 {[%clk 0:00:53]} 35. Rd5 {[%clk 0:00:25]}  Bb3 {[%clk 0:00:53]} 36. Ra5 {[%clk 0:00:21]}  Rd6 {[%clk 0:00:51]} 37. g4 {[%clk 0:00:18]}  Rd1 {[%clk 0:00:47]} 38. Bc3 {[%clk 0:00:16]}  Rd3 {[%clk 0:00:47]} 39. Ba1 {[%clk 0:00:15]}  Rf3 {[%clk 0:00:37]} 40. g5 {[%clk 0:00:15]}  Rxf4 {[%clk 0:00:31]} 41. gxf6+ {[%clk 0:00:15]}  Kg6 {[%clk 0:00:30]} 42. Ra7 {[%clk 0:00:14]}  Bf7 {[%clk 0:00:30]} 43. Kg3 {[%clk 0:00:13]}  Rc4 {[%clk 0:00:27]} 44. Ra5 {[%clk 0:00:12]}  h5 {[%clk 0:00:28]} 45. Rb5 {[%clk 0:00:03]}  Rc1 {[%clk 0:00:27]} 46. Bb2 {[%clk 0:00:03]}  Rb1 {[%clk 0:00:26]} 47. Rb4 {[%clk 0:00:03]}  Bb3 {[%clk 0:00:23]} 48. Bd4 {[%clk 0:00:03]}  Rd1 {[%clk 0:00:23]} 49. Bb2 {[%clk 0:00:02]}  Rd3+ {[%clk 0:00:22]} 50. Kf4 {[%clk 0:00:02]}  h4 {[%clk 0:00:19]} 51. Bd4 {[%clk 0:00:02]}  h3 {[%clk 0:00:18]} 52. Rb7 {[%clk 0:00:02]}  Bf7 {[%clk 0:00:17]} 53. Bg1 {[%clk 0:00:02]}  a3 {[%clk 0:00:16]} 54. Ra7 {[%clk 0:00:02]}  Rd1 {[%clk 0:00:15]} 55. Bh2 {[%clk 0:00:01]}  a2 {[%clk 0:00:15]} 56. Kg3 {[%clk 0:00:02]}  Rd3+ {[%clk 0:00:15]} 57. Kg4 {[%clk 0:00:01]}  Rd1 {[%clk 0:00:15]} 58. Rxa2 {[%clk 0:00:01]}  Bxa2 {[%clk 0:00:15]} 59. Kxh3 {[%clk 0:00:02]}  Kxf6 {[%clk 0:00:14]} 60. Kg3 {[%clk 0:00:02]}  Kf5 {[%clk 0:00:15]} 61. Kf3 {[%clk 0:00:02]}  Rd3+ {[%clk 0:00:15]} 62. Ke2 {[%clk 0:00:02]}  Bc4 {[%clk 0:00:16]} 63. Kf2 {[%clk 0:00:02]}  Rd2+ {[%clk 0:00:16]} 64. Kg1 {[%clk 0:00:02]}  Kg4 {[%clk 0:00:15]} 65. Be5 {[%clk 0:00:02]}  Kf3 {[%clk 0:00:16]} 66. Bc3 {[%clk 0:00:02]}  Rd1+ {[%clk 0:00:16]} 67. Kh2 {[%clk 0:00:02]}  Bd5 {[%clk 0:00:16]} 68. Be5 {[%clk 0:00:01]}  Kg4 {[%clk 0:00:16]} 0-1


[Site "https://www.chess.com"]

[Event "Titled Tuesday Blitz March 21 Early 2023"]
[White "Crevatin, Leo"]
[Black "Guzman Moneo, Alberto"]
[WhiteFideId "1726307"]
[BlackFideId "2209616"]
[WhiteElo "2190"]
[BlackElo "2157"]
[Result "0-1"]
[Round "06"]
[TimeControl "180+2"]
[Date "2023.03.21"]
[WhiteClock "0:00:10"]
[BlackClock "0:00:38"]

1. e4 {[%clk 0:02:51]}  c5 {[%clk 0:02:59]} 2. Nf3 {[%clk 0:02:50]}  Nc6 {[%clk 0:03:00]} 3. Bb5 {[%clk 0:02:49]}  Nf6 {[%clk 0:02:58]} 4. e5 {[%clk 0:02:45]}  Nd5 {[%clk 0:02:54]} 5. Nc3 {[%clk 0:02:45]}  Nc7 {[%clk 0:02:54]} 6. Bxc6 {[%clk 0:02:44]}  dxc6 {[%clk 0:02:54]} 7. O-O {[%clk 0:02:44]}  Bg4 {[%clk 0:02:54]} 8. h3 {[%clk 0:02:44]}  Bh5 {[%clk 0:02:52]} 9. d3 {[%clk 0:02:40]}  Ne6 {[%clk 0:02:52]} 10. Ne4 {[%clk 0:02:36]}  Qd5 {[%clk 0:02:44]} 11. g4 {[%clk 0:02:19]}  Bg6 {[%clk 0:02:44]} 12. Nc3 {[%clk 0:02:15]}  Qd7 {[%clk 0:02:40]} 13. Nh4 {[%clk 0:02:11]}  h5 {[%clk 0:02:19]} 14. Nxg6 {[%clk 0:02:07]}  fxg6 {[%clk 0:02:20]} 15. Ne4 {[%clk 0:02:05]}  Qd4 {[%clk 0:02:16]} 16. Be3 {[%clk 0:01:53]}  Qxe5 {[%clk 0:02:13]} 17. f4 {[%clk 0:01:53]}  Qd5 {[%clk 0:02:13]} 18. f5 {[%clk 0:01:52]}  Nd4 {[%clk 0:02:03]} 19. fxg6 {[%clk 0:01:46]}  O-O-O {[%clk 0:01:51]} 20. Bxd4 {[%clk 0:01:34]}  Qxd4+ {[%clk 0:01:46]} 21. Kg2 {[%clk 0:01:33]}  c4 {[%clk 0:01:43]} 22. c3 {[%clk 0:00:55]}  Qd5 {[%clk 0:01:30]} 23. Rf5 {[%clk 0:00:44]}  e5 {[%clk 0:01:28]} 24. gxh5 {[%clk 0:00:43]}  cxd3 {[%clk 0:01:25]} 25. Qg4 {[%clk 0:00:43]}  Kb8 {[%clk 0:01:22]} 26. b3 {[%clk 0:00:33]}  Ba3 {[%clk 0:01:13]} 27. Rd1 {[%clk 0:00:32]}  Bb2 {[%clk 0:01:07]} 28. Qf3 {[%clk 0:00:29]}  a5 {[%clk 0:01:01]} 29. Kh2 {[%clk 0:00:28]}  Ba3 {[%clk 0:00:56]} 30. Nf2 {[%clk 0:00:21]}  Qd6 {[%clk 0:00:47]} 31. Rxd3 {[%clk 0:00:19]}  e4+ {[%clk 0:00:47]} 32. Rxd6 {[%clk 0:00:16]}  Bxd6+ {[%clk 0:00:45]} 33. Qg3 {[%clk 0:00:08]}  Bxg3+ {[%clk 0:00:44]} 34. Kxg3 {[%clk 0:00:09]}  e3 {[%clk 0:00:44]} 35. Ng4 {[%clk 0:00:09]}  e2 {[%clk 0:00:44]} 36. Re5 {[%clk 0:00:09]}  Rhe8 {[%clk 0:00:41]} 37. Kf2 {[%clk 0:00:10]}  Rxe5 {[%clk 0:00:39]} 38. Nxe5 {[%clk 0:00:10]}  e1=Q+ {[%clk 0:00:37]} 39. Kxe1 {[%clk 0:00:10]}  Re8 {[%clk 0:00:38]} 0-1


[Site "https://www.chess.com"]

[Event "Titled Tuesday Blitz March 21 Early 2023"]
[White "Dudzinski, Pawel"]
[Black "Hamitevici, Vladimir"]
[WhiteFideId "1117890"]
[BlackFideId "13902393"]
[WhiteElo "2099"]
[BlackElo "2401"]
[Result "1/2-1/2"]
[Round "06"]
[TimeControl "180+2"]
[Date "2023.03.21"]
[WhiteClock "0:00:26"]
[BlackClock "0:00:08"]

1. e4 {[%clk 0:02:55]}  e5 {[%clk 0:02:59]} 2. Nf3 {[%clk 0:02:54]}  Nc6 {[%clk 0:02:59]} 3. d4 {[%clk 0:02:54]}  exd4 {[%clk 0:02:59]} 4. Nxd4 {[%clk 0:02:55]}  Qf6 {[%clk 0:02:58]} 5. Nxc6 {[%clk 0:02:53]}  dxc6 {[%clk 0:02:59]} 6. Qf3 {[%clk 0:02:51]}  Bc5 {[%clk 0:02:47]} 7. Bc4 {[%clk 0:02:50]}  Ne7 {[%clk 0:02:47]} 8. Qxf6 {[%clk 0:02:49]}  gxf6 {[%clk 0:02:48]} 9. Ke2 {[%clk 0:02:42]}  Rg8 {[%clk 0:02:45]} 10. g3 {[%clk 0:02:41]}  f5 {[%clk 0:02:42]} 11. Bd3 {[%clk 0:02:36]}  fxe4 {[%clk 0:02:27]} 12. Bxe4 {[%clk 0:02:37]}  Bf5 {[%clk 0:02:27]} 13. Nc3 {[%clk 0:02:26]}  O-O-O {[%clk 0:02:22]} 14. Be3 {[%clk 0:02:24]}  Bb4 {[%clk 0:02:17]} 15. Bxf5+ {[%clk 0:02:23]}  Nxf5 {[%clk 0:02:15]} 16. Rad1 {[%clk 0:02:23]}  Bxc3 {[%clk 0:02:03]} 17. bxc3 {[%clk 0:02:20]}  Rde8 {[%clk 0:01:59]} 18. Rhe1 {[%clk 0:02:10]}  Nxe3 {[%clk 0:01:57]} 19. fxe3 {[%clk 0:02:11]}  Rg5 {[%clk 0:01:52]} 20. Rd4 {[%clk 0:02:07]}  Rh5 {[%clk 0:01:37]} 21. h4 {[%clk 0:02:04]}  Ra5 {[%clk 0:01:29]} 22. a4 {[%clk 0:02:02]}  b5 {[%clk 0:01:25]} 23. Rf1 {[%clk 0:01:38]}  Re7 {[%clk 0:01:22]} 24. Rf5 {[%clk 0:01:36]}  Kb7 {[%clk 0:01:06]} 25. Rdf4 {[%clk 0:01:28]}  Kb6 {[%clk 0:01:01]} 26. axb5 {[%clk 0:01:26]}  Rxb5 {[%clk 0:00:51]} 27. Rxf7 {[%clk 0:01:26]}  Rxf7 {[%clk 0:00:47]} 28. Rxf7 {[%clk 0:01:27]}  h5 {[%clk 0:00:43]} 29. Rf4 {[%clk 0:01:24]}  a5 {[%clk 0:00:42]} 30. Kf3 {[%clk 0:01:10]}  Rb1 {[%clk 0:00:34]} 31. Ra4 {[%clk 0:01:04]}  Kb5 {[%clk 0:00:29]} 32. Ra3 {[%clk 0:01:03]}  Rf1+ {[%clk 0:00:29]} 33. Kg2 {[%clk 0:00:54]}  Rf8 {[%clk 0:00:24]} 34. e4 {[%clk 0:00:38]}  c5 {[%clk 0:00:20]} 35. Ra2 {[%clk 0:00:36]}  c4 {[%clk 0:00:17]} 36. Ra3 {[%clk 0:00:36]}  c6 {[%clk 0:00:12]} 37. Ra2 {[%clk 0:00:36]}  a4 {[%clk 0:00:12]} 38. Rb2+ {[%clk 0:00:34]}  Kc5 {[%clk 0:00:12]} 39. Ra2 {[%clk 0:00:34]}  Kb5 {[%clk 0:00:10]} 40. Rb2+ {[%clk 0:00:34]}  Kc5 {[%clk 0:00:11]} 41. Ra2 {[%clk 0:00:34]}  Ra8 {[%clk 0:00:07]} 42. Kf3 {[%clk 0:00:34]}  Kd6 {[%clk 0:00:06]} 43. g4 {[%clk 0:00:35]}  hxg4+ {[%clk 0:00:06]} 44. Kxg4 {[%clk 0:00:36]}  Ke5 {[%clk 0:00:07]} 45. h5 {[%clk 0:00:34]}  Rg8+ {[%clk 0:00:06]} 46. Kh4 {[%clk 0:00:34]}  Rg2 {[%clk 0:00:05]} 47. Rxa4 {[%clk 0:00:33]}  Kf4 {[%clk 0:00:05]} 48. Kh3 {[%clk 0:00:33]}  Rg3+ {[%clk 0:00:06]} 49. Kh2 {[%clk 0:00:32]}  Rxc3 {[%clk 0:00:06]} 50. h6 {[%clk 0:00:30]}  Rxc2+ {[%clk 0:00:07]} 51. Kh1 {[%clk 0:00:30]}  Rc1+ {[%clk 0:00:07]} 52. Kg2 {[%clk 0:00:30]}  Rc2+ {[%clk 0:00:08]} 53. Kh3 {[%clk 0:00:30]}  Rc3+ {[%clk 0:00:08]} 54. Kh4 {[%clk 0:00:28]}  Rc1 {[%clk 0:00:08]} 55. Kh5 {[%clk 0:00:29]}  Rh1+ {[%clk 0:00:08]} 56. Kg6 {[%clk 0:00:29]}  c3 {[%clk 0:00:08]} 57. Rc4 {[%clk 0:00:29]}  Rg1+ {[%clk 0:00:08]} 58. Kf7 {[%clk 0:00:28]}  Rh1 {[%clk 0:00:07]} 59. Kg7 {[%clk 0:00:29]}  Rg1+ {[%clk 0:00:07]} 60. Kf8 {[%clk 0:00:29]}  Rh1 {[%clk 0:00:07]} 61. Kg7 {[%clk 0:00:29]}  Rg1+ {[%clk 0:00:07]} 62. Kh8 {[%clk 0:00:30]}  Rg3 {[%clk 0:00:07]} 63. h7 {[%clk 0:00:29]}  Ke5 {[%clk 0:00:07]} 64. Rxc6 {[%clk 0:00:29]}  Kxe4 {[%clk 0:00:07]} 65. Rc7 {[%clk 0:00:27]}  Kd3 {[%clk 0:00:08]} 66. Rd7+ {[%clk 0:00:26]}  Ke2 {[%clk 0:00:07]} 67. Re7+ {[%clk 0:00:26]}  Kd2 {[%clk 0:00:08]} 68. Rd7+ {[%clk 0:00:26]}  Ke2 {[%clk 0:00:08]} 69. Re7+ {[%clk 0:00:26]}  Kd1 {[%clk 0:00:08]} 70. Rd7+ {[%clk 0:00:26]}  Ke2 {[%clk 0:00:08]} 1/2-1/2


[Site "https://www.chess.com"]

[Event "Titled Tuesday Blitz March 21 Early 2023"]
[White "Larino Nieto, David"]
[Black "Bas Mas, Jose Joaquin"]
[WhiteFideId "2256444"]
[BlackFideId "22219064"]
[WhiteElo "2506"]
[BlackElo "2233"]
[Result "1-0"]
[Round "06"]
[TimeControl "180+2"]
[Date "2023.03.21"]
[WhiteClock "0:00:06"]
[BlackClock "0:00:05"]

1. e4 {[%clk 0:02:52]}  e6 {[%clk 0:02:59]} 2. d3 {[%clk 0:02:14]}  d5 {[%clk 0:02:59]} 3. Nd2 {[%clk 0:02:12]}  c5 {[%clk 0:02:50]} 4. Ngf3 {[%clk 0:02:12]}  Nc6 {[%clk 0:02:50]} 5. g3 {[%clk 0:02:12]}  Nge7 {[%clk 0:02:50]} 6. Bg2 {[%clk 0:02:13]}  g6 {[%clk 0:02:51]} 7. O-O {[%clk 0:02:13]}  Bg7 {[%clk 0:02:52]} 8. c3 {[%clk 0:02:13]}  b6 {[%clk 0:02:52]} 9. Re1 {[%clk 0:02:14]}  h6 {[%clk 0:02:41]} 10. h4 {[%clk 0:02:12]}  d4 {[%clk 0:02:33]} 11. cxd4 {[%clk 0:02:04]}  Nxd4 {[%clk 0:02:17]} 12. Nxd4 {[%clk 0:01:59]}  Qxd4 {[%clk 0:02:14]} 13. e5 {[%clk 0:01:52]}  Rb8 {[%clk 0:02:13]} 14. Nc4 {[%clk 0:01:52]}  O-O {[%clk 0:02:10]} 15. Be3 {[%clk 0:01:48]}  Qd7 {[%clk 0:02:08]} 16. d4 {[%clk 0:01:43]}  cxd4 {[%clk 0:01:58]} 17. Qxd4 {[%clk 0:01:39]}  Nf5 {[%clk 0:01:53]} 18. Qxd7 {[%clk 0:01:30]}  Bxd7 {[%clk 0:01:54]} 19. Bd2 {[%clk 0:01:20]}  Rfd8 {[%clk 0:01:42]} 20. Bb4 {[%clk 0:01:14]}  Bf8 {[%clk 0:01:35]} 21. Bxf8 {[%clk 0:01:05]}  Kxf8 {[%clk 0:01:34]} 22. Rac1 {[%clk 0:00:55]}  Ke7 {[%clk 0:01:27]} 23. Ne3 {[%clk 0:00:52]}  Nxe3 {[%clk 0:01:22]} 24. Rxe3 {[%clk 0:00:53]}  Rbc8 {[%clk 0:01:22]} 25. Rec3 {[%clk 0:00:52]}  Rxc3 {[%clk 0:01:22]} 26. Rxc3 {[%clk 0:00:53]}  Rc8 {[%clk 0:01:22]} 27. Rxc8 {[%clk 0:00:45]}  Bxc8 {[%clk 0:01:23]} 28. f4 {[%clk 0:00:40]}  h5 {[%clk 0:01:12]} 29. Kf2 {[%clk 0:00:39]}  Kd7 {[%clk 0:01:11]} 30. Ke3 {[%clk 0:00:38]}  Kc7 {[%clk 0:01:11]} 31. Bf3 {[%clk 0:00:31]}  Bb7 {[%clk 0:01:07]} 32. Be2 {[%clk 0:00:31]}  Bd5 {[%clk 0:01:06]} 33. a3 {[%clk 0:00:30]}  a5 {[%clk 0:01:03]} 34. g4 {[%clk 0:00:30]}  hxg4 {[%clk 0:01:01]} 35. Bxg4 {[%clk 0:00:30]}  Bc6 {[%clk 0:00:57]} 36. f5 {[%clk 0:00:19]}  exf5 {[%clk 0:00:48]} 37. Bxf5 {[%clk 0:00:19]}  Bd7 {[%clk 0:00:26]} 38. Be4 {[%clk 0:00:15]}  Be6 {[%clk 0:00:24]} 39. Kf4 {[%clk 0:00:15]}  Kd7 {[%clk 0:00:24]} 40. Kg5 {[%clk 0:00:15]}  Ke7 {[%clk 0:00:25]} 41. Bd3 {[%clk 0:00:16]}  Bb3 {[%clk 0:00:24]} 42. Ba6 {[%clk 0:00:12]}  Bd5 {[%clk 0:00:23]} 43. Bc8 {[%clk 0:00:11]}  Ba2 {[%clk 0:00:23]} 44. Bg4 {[%clk 0:00:12]}  Bb3 {[%clk 0:00:23]} 45. Kf4 {[%clk 0:00:12]}  Ba2 {[%clk 0:00:23]} 46. b4 {[%clk 0:00:13]}  axb4 {[%clk 0:00:22]} 47. axb4 {[%clk 0:00:14]}  Be6 {[%clk 0:00:21]} 48. Bf3 {[%clk 0:00:14]}  Bf5 {[%clk 0:00:19]} 49. Ke3 {[%clk 0:00:14]}  f6 {[%clk 0:00:12]} 50. Kd4 {[%clk 0:00:13]}  Bc2 {[%clk 0:00:08]} 51. Kd5 {[%clk 0:00:10]}  fxe5 {[%clk 0:00:07]} 52. Kxe5 {[%clk 0:00:10]}  Kf7 {[%clk 0:00:06]} 53. Bd5+ {[%clk 0:00:09]}  Kg7 {[%clk 0:00:05]} 54. Kd6 {[%clk 0:00:09]}  Kh6 {[%clk 0:00:05]} 55. Bf3 {[%clk 0:00:09]}  g5 {[%clk 0:00:03]} 56. hxg5+ {[%clk 0:00:09]}  Kxg5 {[%clk 0:00:04]} 57. Kc6 {[%clk 0:00:09]}  Kf6 {[%clk 0:00:05]} 58. Kxb6 {[%clk 0:00:08]}  Ke7 {[%clk 0:00:06]} 59. Kc7 {[%clk 0:00:06]}  Ba4 {[%clk 0:00:06]} 60. Bc6 {[%clk 0:00:06]}  Bb3 {[%clk 0:00:05]} 61. b5 {[%clk 0:00:06]}  Be6 {[%clk 0:00:05]} 62. b6 {[%clk 0:00:06]} 1-0


[Site "https://www.chess.com"]